fUSD/lending_fUSD_20250215
["ID","MTS","AMOUNT","RATE_DAILY","PERIOD"]
[353156378,1739614268515,-500.0,0.00013286,2]
[353156379,1739614268524,-500.0,0.00013286,2]
[353156380,1739614268534,-500.0,0.00013286,2]
[353156381,1739614268543,-636.4,0.00013286,2]
[353156382,1739614268553,-339.22,0.00013286,2]
[353156383,1739614268562,-500.0,0.00013286,2]
[353156384,1739614268571,-500.0,0.00013286,2]
[353156385,1739614268581,-500.0,0.00013286,2]
[353156386,1739614268590,-500.0,0.00013286,2]
[353156387,1739614268600,-500.0,0.00013286,2]
[353156388,1739614268609,-500.0,0.00013286,2]
[353156389,1739614268619,-500.0,0.00013286,2]
[353156390,1739614268629,-500.0,0.00013286,2]
[353156391,1739614268638,-500.0,0.00013286,2]
[353156392,1739614268647,-500.0,0.00013286,2]
[353156393,1739614268657,-309.47,0.00013286,2]
[353156394,1739614268667,-500.0,0.00013286,2]
[353156395,1739614268676,-500.0,0.00013286,2]
[353156396,1739614268686,-1003.21,0.00013286,2]
[353156397,1739614268696,-500.0,0.00013286,2]
[353156398,1739614268707,-500.0,0.00013286,2]
[353156399,1739614268717,-500.0,0.00013286,2]
[353156400,1739614268726,-364.99,0.00013286,2]
[353156401,1739614268736,-500.0,0.00013286,2]
[353156402,1739614268745,-636.66,0.00013286,2]
[353156403,1739614268755,-541.55,0.00013286,2]
[353156404,1739614268765,-500.0,0.00013286,2]
[353156405,1739614268774,-1044.13,0.00013286,2]
[353156406,1739614268784,-500.0,0.00013286,2]
[353156407,1739614268794,-2360.06,0.00013286,2]
[353156408,1739614268803,-500.0,0.00013286,2]
[353156409,1739614268813,-560.21,0.00013286,2]
[353156410,1739614268823,-364.77,0.00013286,2]
[353156411,1739614268832,-500.0,0.00013286,2]
[353156412,1739614268841,-748.23,0.00013286,2]
[353156413,1739614268851,-500.0,0.00013286,2]
[353156414,1739614268860,-535.21,0.00013286,2]
[353156415,1739614268870,-500.0,0.00013286,2]
[353156416,1739614268879,-510.98,0.00013286,2]
[353156417,1739614268889,-500.0,0.00013286,2]
[353156418,1739614268898,-500.0,0.00013286,2]
[353156419,1739614268907,-791.07,0.00013286,2]
[353156420,1739614268917,-500.0,0.00013286,2]
[353156421,1739614268926,-307.9,0.00013286,2]
[353156422,1739614268936,-628.58,0.00013286,2]
[353156423,1739614268945,-500.0,0.00013286,2]
[353156424,1739614268954,-500.0,0.00013286,2]
[353156425,1739614268964,-861.68,0.00013286,2]
[353156426,1739614268973,-500.0,0.00013286,2]
[353156427,1739614268983,-997.83,0.00013286,2]
[353156428,1739614268992,-655.17,0.00013286,2]
[353156429,1739614269001,-500.0,0.00013286,2]
[353156430,1739614269010,-500.0,0.00013286,2]
[353156431,1739614269019,-500.0,0.00013286,2]
[353156432,1739614269028,-736.8,0.00013286,2]
[353156433,1739614269038,-500.0,0.00013286,2]
[353156434,1739614269047,-500.0,0.00013286,2]
[353156435,1739614269057,-500.0,0.00013286,2]
[353156436,1739614269066,-500.0,0.00013286,2]
[353156437,1739614269075,-500.0,0.00013286,2]
[353156438,1739614269084,-693.79,0.00013286,2]
[353156439,1739614269094,-500.0,0.00013286,2]
[353156440,1739614269103,-1153.16,0.00013286,2]
[353156441,1739614269112,-500.0,0.00013286,2]
[353156442,1739614269121,-500.0,0.00013286,2]
[353156443,1739614269132,-500.0,0.00013286,2]
[353156444,1739614269141,-500.0,0.00013286,2]
[353156445,1739614269150,-477.63,0.00013286,2]
[353156446,1739614269160,-500.0,0.00013286,2]
[353156447,1739614269169,-587.83,0.00013286,2]
[353156448,1739614269179,-500.0,0.00013286,2]
[353156449,1739614269188,-500.0,0.00013299,2]
[353156450,1739614269198,-1232.06,0.00013299,2]
[353156451,1739614269207,-62065.09173605,0.000133,2]
[353156452,1739614269217,-1392.51,0.00013349,2]
[353156453,1739614269226,-500.0,0.00013349,2]
[353156454,1739614269235,-500.0,0.00013349,2]
[353156455,1739614269245,-500.0,0.00013349,2]
[353156456,1739614269254,-500.0,0.00013349,2]
[353156457,1739614269263,-500.0,0.00013349,2]
[353156458,1739614269272,-500.0,0.00013349,2]
[353156459,1739614269281,-500.0,0.00013349,2]
[353156460,1739614269290,-500.0,0.00013349,2]
[353156461,1739614269299,-500.0,0.00013349,2]
[353156462,1739614269308,-1000.0,0.00013349,2]
[353156463,1739614269317,-590.41,0.00013349,2]
[353156464,1739614269327,-500.0,0.00013349,2]
[353156465,1739614269336,-500.0,0.00013349,2]
[353156466,1739614269345,-1314.866743,0.00013367,2]
[353156467,1739614269355,-500.0,0.00013367,2]
[353156468,1739614269365,-500.0,0.00013367,2]
[353156469,1739614269373,-500.0,0.00013367,2]
[353156470,1739614269383,-500.0,0.00013367,2]
[353156471,1739614269392,-500.0,0.00013367,2]
[353156472,1739614269405,-500.0,0.00013367,2]
[353156473,1739614269414,-1024.26,0.00013367,2]
[353156474,1739614269424,-500.0,0.00013367,2]
[353156475,1739614269434,-1265.427403,0.00013367,2]
[353156476,1739614269444,-500.0,0.00013367,2]
[353156477,1739614269454,-1365.1,0.00013367,2]
[353156478,1739614269463,-500.0,0.00013367,2]
[353156479,1739614269474,-627.95,0.00013367,2]
[353156480,1739614269484,-500.0,0.00013367,2]
[353156481,1739614269493,-507.63,0.00013367,2]
[353156482,1739614269502,-500.0,0.00013367,2]
[353156483,1739614269511,-500.0,0.00013367,2]
[353156484,1739614269520,-500.0,0.00013367,2]
[353156485,1739614269530,-554.84,0.00013367,2]
[353156486,1739614269540,-500.0,0.00013367,2]
[353156487,1739614269550,-1011.9,0.00013367,2]
[353156488,1739614269559,-862.31,0.00013367,2]
[353156489,1739614269568,-500.0,0.00013367,2]
[353156490,1739614269577,-344.69,0.00013367,2]
[353156491,1739614269587,-555.17,0.00013367,2]
[353156492,1739614269596,-639.43,0.00013367,2]
[353156493,1739614269605,-500.0,0.00013367,2]
[353156494,1739614269614,-500.0,0.00013367,2]
[353156495,1739614269625,-500.0,0.00013367,2]
[353156496,1739614269635,-602.18,0.00013367,2]
[353156497,1739614269644,-500.0,0.00013367,2]
[353156498,1739614269653,-500.0,0.00013367,2]
[353156499,1739614269662,-990.22,0.00013367,2]
[353156500,1739614269671,-500.0,0.00013367,2]
[353156501,1739614269681,-500.0,0.00013367,2]
[353156502,1739614269690,-500.0,0.00013367,2]
[353156503,1739614269700,-500.0,0.00013367,2]
[353156504,1739614269710,-528.12,0.00013367,2]
[353156505,1739614269718,-500.0,0.00013367,2]
[353156506,1739614269728,-750.83,0.00013367,2]
[353156507,1739614269737,-588.39,0.00013367,2]
[353156508,1739614269746,-500.0,0.00013367,2]
[353156509,1739614269755,-500.0,0.00013367,2]
[353156510,1739614269765,-425.05,0.00013367,2]
[353156511,1739614269774,-500.0,0.00013367,2]
[353156512,1739614269784,-500.0,0.00013367,2]
[353156513,1739614269794,-1454.86,0.00013367,2]
[353156514,1739614269803,-475.23710977,0.00013367,2]
[353156515,1739614269813,-500.0,0.00013367,2]
[353156516,1739614269823,-500.0,0.00013367,2]
[353156517,1739614269833,-500.0,0.00013367,2]
[353156518,1739614269843,-500.0,0.00013367,2]
[353156519,1739614269853,-500.0,0.00013367,2]
[353156520,1739614269862,-500.0,0.00013368,2]
[353156521,1739614269872,-500.0,0.00013369,2]
[353156522,1739614269883,-317.29,0.00013369,2]
[353156523,1739614269893,-500.0,0.00013369,2]
[353156524,1739614269903,-500.0,0.00013369,2]
[353156525,1739614269913,-500.0,0.00013369,2]
[353156526,1739614269923,-500.0,0.00013369,2]
[353156527,1739614269934,-524.98,0.00013369,2]
[353156528,1739614269945,-500.0,0.00013369,2]
[353156529,1739614269955,-500.0,0.00013369,2]
[353156530,1739614269965,-500.0,0.00013369,2]
[353156531,1739614269977,-500.0,0.00013369,2]
[353156532,1739614269988,-500.0,0.00013369,2]
[353156533,1739614269998,-409.16,0.00013369,2]
[353156534,1739614270008,-500.0,0.00013369,2]
[353156535,1739614270018,-596.56,0.00013369,2]
[353156536,1739614270028,-500.0,0.00013369,2]
[353156537,1739614270038,-296.24,0.00013369,2]
[353156538,1739614270048,-535.74,0.00013369,2]
[353156539,1739614270059,-500.0,0.00013369,2]
[353156540,1739614270068,-500.0,0.00013369,2]
[353156541,1739614270078,-500.0,0.00013369,2]
[353156542,1739614270089,-500.0,0.00013369,2]
[353156543,1739614270099,-500.0,0.00013369,2]
[353156544,1739614270109,-500.0,0.00013369,2]
[353156545,1739614270119,-1003.21,0.00013369,2]
[353156546,1739614270129,-500.0,0.00013369,2]
[353156547,1739614270139,-500.0,0.00013369,2]
[353156548,1739614270149,-600.2,0.00013369,2]
[353156549,1739614270158,-500.0,0.00013369,2]
[353156550,1739614270168,-636.66,0.00013369,2]
[353156551,1739614270178,-541.55,0.00013369,2]
[353156552,1739614270187,-387.22,0.00013369,2]
[353156553,1739614270196,-1044.13,0.00013369,2]
[353156554,1739614270207,-427.32,0.00013369,2]
[353156555,1739614270217,-2360.06,0.00013369,2]
[353156556,1739614270227,-610.66,0.00013369,2]
[353156557,1739614270236,-560.21,0.00013369,2]
[353156558,1739614270246,-320.99,0.00013369,2]
[353156559,1739614270256,-748.23,0.00013369,2]
[353156560,1739614270266,-313.3,0.00013369,2]
[353156561,1739614270275,-500.0,0.00013369,2]
[353156562,1739614270285,-510.98,0.00013369,2]
[353156563,1739614270295,-443.89,0.00013369,2]
[353156564,1739614270305,-500.0,0.00013369,2]
[353156565,1739614270314,-791.07,0.00013369,2]
[353156566,1739614270324,-500.0,0.00013369,2]
[353156567,1739614270333,-628.58,0.00013369,2]
[353156568,1739614270343,-500.0,0.00013369,2]
[353156569,1739614270352,-500.0,0.00013369,2]
[353156570,1739614270362,-861.68,0.00013369,2]
[353156571,1739614270372,-500.0,0.00013369,2]
[353156572,1739614270381,-997.83,0.00013369,2]
[353156573,1739614270392,-655.17,0.00013369,2]
[353156574,1739614270405,-302.16,0.00013369,2]
[353156575,1739614270414,-500.0,0.00013369,2]
[353156576,1739614270424,-500.0,0.00013369,2]
[353156577,1739614270434,-736.8,0.00013369,2]
[353156578,1739614270444,-500.0,0.00013369,2]
[353156579,1739614270454,-500.0,0.00013369,2]
[353156580,1739614270464,-500.0,0.00013369,2]
[353156581,1739614270619,-500.0,0.00013369,2]
[353156582,1739614270629,-500.0,0.00013369,2]
[353156583,1739614270639,-693.79,0.00013369,2]
[353156584,1739614270648,-500.0,0.00013369,2]
[353156585,1739614270658,-1153.16,0.00013369,2]
[353156586,1739614270668,-500.0,0.00013369,2]
[353156587,1739614270678,-500.0,0.00013369,2]
[353156588,1739614270688,-500.0,0.00013369,2]
[353156589,1739614270698,-500.0,0.00013369,2]
[353156590,1739614270708,-500.0,0.00013369,2]
[353156591,1739614270718,-587.83,0.00013369,2]
[353156592,1739614270728,-453.59,0.00013369,2]
[353156593,1739614270737,-280.0,0.0001338,2]
[353156594,1739614270747,-202.0,0.0001338,2]
[353156595,1739614270756,-500.0,0.00013381,2]
[353156596,1739614270766,-161.7406704,0.00013381,2]
[353156597,1739614270775,-209.0,0.0001342,2]
[353156598,1739614270785,-205.0,0.0001342,2]
[353156599,1739614270795,-206.0,0.0001342,2]
[353156600,1739614270804,-1392.51,0.00013432,2]
[353156601,1739614270814,-500.0,0.00013432,2]
[353156602,1739614270824,-500.0,0.00013432,2]
[353156603,1739614270834,-500.0,0.00013432,2]
[353156604,1739614270843,-500.0,0.00013432,2]
[353156605,1739614270853,-500.0,0.00013432,2]
[353156606,1739614270863,-418.52,0.00013432,2]
[353156607,1739614270872,-500.0,0.00013432,2]
[353156608,1739614270882,-500.0,0.00013432,2]
[353156609,1739614270892,-500.0,0.00013432,2]
[353156610,1739614270901,-1013.77,0.00013432,2]
[353156611,1739614270911,-590.41,0.00013432,2]
[353156612,1739614270920,-500.0,0.00013432,2]
[353156613,1739614270929,-500.0,0.00013432,2]
[353156614,1739614270939,-512.778603,0.00013434,2]
[353156615,1739614270948,-1314.866743,0.0001345,2]
[353156616,1739614270958,-500.0,0.0001345,2]
[353156617,1739614270968,-500.0,0.0001345,2]
[353156618,1739614270978,-500.0,0.0001345,2]
[353156619,1739614270988,-500.0,0.0001345,2]
[353156620,1739614270997,-500.0,0.0001345,2]
[353156621,1739614271007,-500.0,0.0001345,2]
[353156622,1739614271016,-1024.26,0.0001345,2]
[353156623,1739614271026,-500.0,0.0001345,2]
[353156624,1739614271035,-1265.427403,0.0001345,2]
[353156625,1739614271045,-500.0,0.0001345,2]
[353156626,1739614271055,-1365.1,0.0001345,2]
[353156627,1739614271064,-336.6,0.0001345,2]
[353156628,1739614271075,-627.95,0.0001345,2]
[353156629,1739614271085,-500.0,0.0001345,2]
[353156630,1739614271095,-507.63,0.0001345,2]
[353156631,1739614271104,-500.0,0.0001345,2]
[353156632,1739614271113,-500.0,0.0001345,2]
[353156633,1739614271123,-500.0,0.0001345,2]
[353156634,1739614271133,-554.84,0.0001345,2]
[353156635,1739614271142,-500.0,0.0001345,2]
[353156636,1739614271152,-1011.9,0.0001345,2]
[353156637,1739614271162,-862.31,0.0001345,2]
[353156638,1739614271171,-500.0,0.0001345,2]
[353156639,1739614271181,-555.17,0.0001345,2]
[353156640,1739614271191,-639.43,0.0001345,2]
[353156641,1739614271200,-500.0,0.0001345,2]
[353156642,1739614271210,-500.0,0.0001345,2]
[353156643,1739614271219,-500.0,0.0001345,2]
[353156644,1739614271228,-602.18,0.0001345,2]
[353156645,1739614271238,-500.0,0.0001345,2]
[353156646,1739614271247,-500.0,0.0001345,2]
[353156647,1739614271257,-990.22,0.0001345,2]
[353156648,1739614271267,-500.0,0.0001345,2]
[353156649,1739614271277,-500.0,0.0001345,2]
[353156650,1739614271286,-271.08,0.0001345,2]
[353156651,1739614271295,-500.0,0.0001345,2]
[353156652,1739614271304,-528.12,0.0001345,2]
[353156653,1739614271315,-500.0,0.0001345,2]
[353156654,1739614271325,-750.83,0.0001345,2]
[353156655,1739614271335,-588.39,0.0001345,2]
[353156656,1739614271344,-500.0,0.0001345,2]
[353156657,1739614271353,-500.0,0.0001345,2]
[353156658,1739614271363,-500.0,0.0001345,2]
[353156659,1739614271373,-500.0,0.0001345,2]
[353156660,1739614271383,-1454.86,0.0001345,2]
[353156661,1739614271395,-500.0,0.0001345,2]
[353156662,1739614271407,-500.0,0.0001345,2]
[353156663,1739614271416,-500.0,0.0001345,2]
[353156664,1739614271426,-500.0,0.0001345,2]
[353156665,1739614271435,-500.0,0.0001345,2]
[353156666,1739614271446,-500.0,0.00013451,2]
[353156667,1739614271456,-500.0,0.00013451,2]
[353156668,1739614271467,-151.44,0.00013451,2]
[353156669,1739614271477,-571.24850881,0.00013451,2]
[353156670,1739614271486,-361.02,0.00013451,2]
[353156671,1739614271498,-500.0,0.00013451,2]
[353156672,1739614271507,-500.0,0.00013451,2]
[353156673,1739614271518,-500.0,0.00013451,2]
[353156674,1739614271529,-374.76,0.00013451,2]
[353156675,1739614271539,-404.74,0.00013451,2]
[353156676,1739614271550,-500.0,0.00013451,2]
[353156677,1739614271559,-500.0,0.00013451,2]
[353156678,1739614271570,-500.0,0.00013451,2]
[353156679,1739614271580,-500.0,0.00013451,2]
[353156680,1739614271590,-500.0,0.00013451,2]
[353156681,1739614271600,-500.0,0.00013451,2]
[353156682,1739614271609,-500.0,0.00013451,2]
[353156683,1739614271619,-500.0,0.00013451,2]
[353156684,1739614271628,-1003.21,0.00013451,2]
[353156685,1739614271638,-500.0,0.00013451,2]
[353156686,1739614271648,-500.0,0.00013451,2]
[353156687,1739614271657,-500.0,0.00013451,2]
[353156688,1739614271667,-636.66,0.00013451,2]
[353156689,1739614271676,-541.55,0.00013451,2]
[353156690,1739614271685,-1044.13,0.00013451,2]
[353156691,1739614271694,-2360.06,0.00013451,2]
[353156692,1739614271704,-560.21,0.00013451,2]
[353156693,1739614271715,-748.23,0.00013451,2]
[353156694,1739614271724,-500.0,0.00013451,2]
[353156695,1739614271734,-510.98,0.00013451,2]
[353156696,1739614271743,-500.0,0.00013451,2]
[353156697,1739614271753,-791.07,0.00013451,2]
[353156698,1739614271762,-500.0,0.00013451,2]
[353156699,1739614271772,-628.58,0.00013451,2]
[353156700,1739614271781,-500.0,0.00013451,2]
[353156701,1739614271791,-457.15,0.00013451,2]
[353156702,1739614271801,-861.68,0.00013451,2]
[353156703,1739614271811,-500.0,0.00013451,2]
[353156704,1739614271820,-997.83,0.00013451,2]
[353156705,1739614271831,-655.17,0.00013451,2]
[353156706,1739614271840,-504.65,0.00013451,2]
[353156707,1739614271850,-500.0,0.00013451,2]
[353156708,1739614271860,-736.8,0.00013451,2]
[353156709,1739614271870,-500.0,0.00013451,2]
[353156710,1739614271880,-500.0,0.00013451,2]
[353156711,1739614271889,-330.01,0.00013451,2]
[353156712,1739614271899,-500.0,0.00013451,2]
[353156713,1739614271908,-500.0,0.00013451,2]
[353156714,1739614271918,-693.79,0.00013451,2]
[353156715,1739614271927,-500.0,0.00013451,2]
[353156716,1739614271937,-1153.16,0.00013451,2]
[353156717,1739614271947,-500.0,0.00013451,2]
[353156718,1739614271957,-402.21,0.00013451,2]
[353156719,1739614271968,-500.0,0.00013451,2]
[353156720,1739614271978,-500.0,0.00013451,2]
[353156721,1739614271988,-321.31,0.00013451,2]
[353156722,1739614271998,-587.83,0.00013451,2]
[353156723,1739614272007,-1554.56925443,0.00013451,5]
[353156724,1739614272016,-200.0,0.00013452,5]
[353156725,1739614272025,-1146.07095731,0.00013453,5]
[353156726,1739614272035,-200.0,0.00013453,5]
[353156727,1739614272045,-204.14950935,0.00013454,5]
[353156728,1739614272054,-1928.94082906,0.00013456,5]
[353156729,1739614272063,-11338.27676459,0.00013456,5]
[353156730,1739614272072,-1928.94082906,0.00013458,5]
[353156731,1739614272081,-200.0,0.00013459,5]
[353156732,1739614272091,-200.0,0.0001346,5]
[353156733,1739614272100,-1146.07095731,0.0001346,5]
[353156734,1739614272109,-17830.0,0.00013463,7]
[353156735,1739614272118,-4305.42508214,0.00013465,5]
[353156736,1739614272127,-200.0,0.00013465,5]
[353156737,1739614272136,-1928.94082906,0.00013466,5]
[353156738,1739614272146,-4305.42508214,0.00013466,5]
[353156739,1739614272155,-204.14950935,0.00013469,5]
[353156740,1739614272164,-700.0,0.0001347,2]
[353156741,1739614272174,-200.0,0.00013471,5]
[353156742,1739614272183,-1554.56925443,0.00013473,5]
[353156743,1739614272192,-200.0,0.00013473,5]
[353156744,1739614272201,-11338.27676459,0.00013473,5]
[353156745,1739614272210,-1554.56925443,0.00013474,5]
[353156746,1739614272219,-4305.42508214,0.00013475,5]
[353156747,1739614272229,-11338.27676459,0.00013475,5]
[353156748,1739614272239,-204.14950935,0.00013476,5]
[353156749,1739614272248,-204.14950935,0.00013476,5]
[353156750,1739614272258,-1146.07095731,0.00013477,5]
[353156751,1739614272267,-11338.27676459,0.00013478,5]
[353156752,1739614272276,-1146.07095731,0.0001348,5]
[353156753,1739614272285,-1554.56925443,0.00013481,5]
[353156754,1739614272294,-1928.94082906,0.00013481,5]
[353156755,1739614272303,-200.0,0.00013485,5]
[353156756,1739614272313,-200.0,0.00013486,5]
[353156757,1739614272322,-200.0,0.00013488,5]
[353156758,1739614272331,-4305.42508214,0.00013489,5]
[353156759,1739614272340,-1003.47628715,0.00013499,2]
[353156760,1739614272349,-1805.8,0.000135,2]
[353156761,1739614272358,-1011.77,0.000135,2]
[353156762,1739614272368,-1392.51,0.00013514,2]
[353156763,1739614272377,-500.0,0.00013514,2]
[353156764,1739614272387,-500.0,0.00013514,2]
[353156765,1739614272401,-500.0,0.00013514,2]
[353156766,1739614272411,-500.0,0.00013514,2]
[353156767,1739614272419,-500.0,0.00013514,2]
[353156768,1739614272429,-500.0,0.00013514,2]
[353156769,1739614272438,-500.0,0.00013514,2]
[353156770,1739614272447,-500.0,0.00013514,2]
[353156771,1739614272456,-590.41,0.00013514,2]
[353156772,1739614272467,-500.0,0.00013514,2]
[353156773,1739614272477,-500.0,0.00013514,2]
[353156774,1739614272487,-150.0,0.00013521,2]
[353156775,1739614272496,-1314.866743,0.00013532,2]
[353156776,1739614272506,-500.0,0.00013532,2]
[353156777,1739614272515,-500.0,0.00013532,2]
[353156778,1739614272524,-500.0,0.00013532,2]
[353156779,1739614272533,-500.0,0.00013532,2]
[353156780,1739614272543,-471.08,0.00013532,2]
[353156781,1739614272551,-500.0,0.00013532,2]
[353156782,1739614272561,-1024.26,0.00013532,2]
[353156783,1739614272571,-500.0,0.00013532,2]
[353156784,1739614272580,-1265.427403,0.00013532,2]
[353156785,1739614272590,-500.0,0.00013532,2]
[353156786,1739614272600,-1365.1,0.00013532,2]
[353156787,1739614272610,-627.95,0.00013532,2]
[353156788,1739614272619,-500.0,0.00013532,2]
[353156789,1739614272629,-507.63,0.00013532,2]
[353156790,1739614272638,-500.0,0.00013532,2]
[353156791,1739614272647,-500.0,0.00013532,2]
[353156792,1739614272656,-500.0,0.00013532,2]
[353156793,1739614272665,-554.84,0.00013532,2]
[353156794,1739614272675,-500.0,0.00013532,2]
[353156795,1739614272684,-1011.9,0.00013532,2]
[353156796,1739614272694,-862.31,0.00013532,2]
[353156797,1739614272703,-500.0,0.00013532,2]
[353156798,1739614272714,-555.17,0.00013532,2]
[353156799,1739614272723,-639.43,0.00013532,2]
[353156800,1739614272732,-500.0,0.00013532,2]
[353156801,1739614272743,-500.0,0.00013532,2]
[353156802,1739614272752,-500.0,0.00013532,2]
[353156803,1739614272761,-602.18,0.00013532,2]
[353156804,1739614272771,-500.0,0.00013532,2]
[353156805,1739614272780,-500.0,0.00013532,2]
[353156806,1739614272789,-990.22,0.00013532,2]
[353156807,1739614272799,-500.0,0.00013532,2]
[353156808,1739614272809,-500.0,0.00013532,2]
[353156809,1739614272818,-500.0,0.00013532,2]
[353156810,1739614272827,-528.12,0.00013532,2]
[353156811,1739614272837,-500.0,0.00013532,2]
[353156812,1739614272846,-750.83,0.00013532,2]
[353156813,1739614272855,-588.39,0.00013532,2]
[353156814,1739614272864,-500.0,0.00013532,2]
[353156815,1739614272874,-500.0,0.00013532,2]
[353156816,1739614272883,-500.0,0.00013532,2]
[353156817,1739614272893,-1454.86,0.00013532,2]
[353156818,1739614272903,-500.0,0.00013532,2]
[353156819,1739614272913,-500.0,0.00013532,2]
[353156820,1739614272923,-341.92,0.00013532,2]
[353156821,1739614272932,-624.41434151,0.00013532,2]
[353156822,1739614272941,-500.0,0.00013532,2]
[353156823,1739614272950,-500.0,0.00013533,2]
[353156824,1739614272960,-401.7,0.00013533,2]
[353156825,1739614272969,-183.96636274,0.00013533,2]
[353156826,1739614272978,-514.84,0.00013533,2]
[353156827,1739614272987,-500.0,0.00013533,2]
[353156828,1739614272996,-344.4,0.00013533,2]
[353156829,1739614273005,-500.0,0.00013533,2]
[353156830,1739614273014,-500.0,0.00013533,2]
[353156831,1739614273023,-500.0,0.00013533,2]
[353156832,1739614273032,-500.0,0.00013533,2]
[353156833,1739614273042,-200.85,0.00013533,2]
[353156834,1739614273052,-500.0,0.00013533,2]
[353156835,1739614273061,-500.0,0.00013533,2]
[353156836,1739614273071,-1003.21,0.00013533,2]
[353156837,1739614273080,-500.0,0.00013533,2]
[353156838,1739614273089,-500.0,0.00013533,2]
[353156839,1739614273098,-500.0,0.00013533,2]
[353156840,1739614273108,-636.66,0.00013533,2]
[353156841,1739614273117,-541.55,0.00013533,2]
[353156842,1739614273127,-1044.13,0.00013533,2]
[353156843,1739614273136,-2360.06,0.00013533,2]
[353156844,1739614273145,-560.21,0.00013533,2]
[353156845,1739614273154,-748.23,0.00013533,2]
[353156846,1739614273164,-500.0,0.00013533,2]
[353156847,1739614273174,-510.98,0.00013533,2]
[353156848,1739614273184,-500.0,0.00013533,2]
[353156849,1739614273193,-791.07,0.00013533,2]
[353156850,1739614273203,-500.0,0.00013533,2]
[353156851,1739614273213,-628.58,0.00013533,2]
[353156852,1739614273223,-500.0,0.00013533,2]
[353156853,1739614273233,-861.68,0.00013533,2]
[353156854,1739614273243,-500.0,0.00013533,2]
[353156855,1739614273253,-997.83,0.00013533,2]
[353156856,1739614273263,-655.17,0.00013533,2]
[353156857,1739614273272,-500.0,0.00013533,2]
[353156858,1739614273281,-736.8,0.00013533,2]
[353156859,1739614273290,-500.0,0.00013533,2]
[353156860,1739614273300,-500.0,0.00013533,2]
[353156861,1739614273310,-500.0,0.00013533,2]
[353156862,1739614273319,-500.0,0.00013533,2]
[353156863,1739614273328,-693.79,0.00013533,2]
[353156864,1739614273337,-544.86,0.00013533,2]
[353156865,1739614273347,-1153.16,0.00013533,2]
[353156866,1739614273357,-500.0,0.00013533,2]
[353156867,1739614273366,-500.0,0.00013533,2]
[353156868,1739614273376,-500.0,0.00013533,2]
[353156869,1739614273386,-587.83,0.00013533,2]
[353156870,1739614273397,-163.6449409,0.00013553,2]
[353156871,1739614273406,-1392.51,0.00013596,2]
[353156872,1739614273416,-500.0,0.00013596,2]
[353156873,1739614273426,-500.0,0.00013596,2]
[353156874,1739614273436,-574.6,0.00013596,2]
[353156875,1739614273446,-500.0,0.00013596,2]
[353156876,1739614273456,-500.0,0.00013596,2]
[353156877,1739614273466,-500.0,0.00013596,2]